fUST/lending_fUST_20250114
["ID","MTS","AMOUNT","RATE_DAILY","PERIOD"]
[348801456,1736788257941,-151.0,0.00023616,7]
[348801457,1736788258043,-151.0,0.00023616,7]
[348801458,1736788258053,-151.0,0.00023616,7]
[348801459,1736788258062,-151.0,0.00023616,7]
[348801460,1736788258072,-151.0,0.00023616,7]
[348801461,1736788258082,-151.0,0.00023616,7]
[348801462,1736788258092,-151.0,0.00023616,7]
[348801463,1736788258102,-205.54055,0.00023616,7]
[348801464,1736788258112,-152.972493,0.00023616,7]
[348801465,1736788258122,-353.3287683,0.00023616,2]
[348801466,1736788258132,-353.3287683,0.00023616,2]
[348801467,1736788258142,-33222.03503621,0.00023622,5]
[348801468,1736788258151,-21104.46243022,0.00023622,5]
[348801469,1736788258161,-463709.61659928,0.00023622,10]
[348801470,1736788258171,-22109.93047262,0.00023622,20]
[348801471,1736788258180,-1580791.85716841,0.00023622,10]
[348801472,1736788258190,-299531.90864429,0.00023622,10]
[348801473,1736788258199,-229585.1185886,0.00023622,15]
[348801474,1736788258208,-4682455.64443087,0.00023622,10]
[348801475,1736788258224,-380870.20992652,0.00023622,10]
[348801476,1736788258236,-6073.70091391,0.00023622,10]
[348801477,1736788258247,-17564.16868288,0.00023622,10]
[348801478,1736788258259,-5596.76085143,0.00023622,10]
[348801479,1736788258271,-9125.35216671,0.00023622,10]
[348801480,1736788258282,-137284.85318734,0.00023622,10]
[348801481,1736788258294,-463.60001,0.00023622,10]
[348801482,1736788258306,-331628.79974345,0.00023622,10]
[348801483,1736788258397,-254.5478698,0.00020232,3]
[348801484,1736788258407,-500.0,0.00020232,3]
[348801485,1736788258417,-500.0,0.0002078,3]
[348801486,1736788258426,-500.0,0.00021054,3]
[348801487,1736788258436,-410.76609354,0.00021328,3]
[348801488,1736788258445,-151.0,0.00023612,7]
[348801489,1736788258456,-151.0,0.00023612,7]
[348801490,1736788258465,-151.0,0.00023612,7]
[348801491,1736788258475,-151.0,0.00023612,7]
[348801492,1736788258484,-242.346264,0.00023612,7]
[348801493,1736788258494,-91867.69300952,0.00023622,10]
[348801494,1736788258505,-3106.49270905,0.00023622,10]
[348801495,1736788258517,-24614.5729712,0.00023622,10]
[348801496,1736788258567,-500.0,0.00020233,3]
[348801497,1736788258577,-500.0,0.00020506,3]
[348801498,1736788258586,-324.5353335,0.00020507,3]
[348801499,1736788258596,-297.18,0.0002078,3]
[348801500,1736788258605,-11426.91290224,0.00023622,10]
[348801501,1736788258818,-500.0,0.00020232,3]
[348801502,1736788258827,-500.0,0.00020232,3]
[348801503,1736788258836,-500.0,0.00020506,3]
[348801504,1736788258846,-500.0,0.00020506,3]
[348801505,1736788258855,-500.0,0.0002078,3]
[348801506,1736788258864,-174.39864691,0.0002078,3]
[348801507,1736788258877,-325.60135309,0.0002078,3]
[348801508,1736788258888,-396.02622332,0.00021054,3]
[348801509,1736788258897,-150.0,0.00022,2]
[348801510,1736788258908,-7309.98419949,0.00023054,2]
[348801512,1736788335710,1000.0,0.00025,120]
[348801513,1736788396691,426.5,0.00024,30]
[348801514,1736788541758,157.51047,0.00013973,2]
[348801517,1736789228140,-163.763181,0.0001923,2]
[348801518,1736789228174,-248.3338924,0.00019384,2]
[348801519,1736789228199,-210.7371928,0.0002,3]
[348801520,1736789234084,-480.2628072,0.0002,3]
[348801521,1736789234106,-688.0,0.0002,3]
[348801522,1736789234128,-688.0,0.0002,3]
[348801523,1736789234152,-688.0,0.0002,3]
[348801524,1736789234176,-1505.29973004,0.00020032,2]
[348801525,1736789234199,-439.06334016,0.00020129,2]
[348801526,1736789240114,-335.27015515,0.00020129,2]
[348801527,1736789240138,-148.00905396,0.00020227,2]
[348801528,1736789245092,-151.99094604,0.00020227,2]
[348801529,1736789245117,-419.08832574,0.00020228,2]
[348801530,1736789249126,-80.91167426,0.00020228,2]
[348801531,1736789249150,-500.0,0.00020228,2]
[348801532,1736789249174,-37.97717952,0.00020228,2]
[348801723,1736789438009,-300.0,0.00020227,2]
[348801725,1736789438020,-218.34272322,0.00020228,2]
[348801727,1736789438030,-373.19275812,0.00020228,2]
[348801729,1736789438040,-500.0,0.00020228,2]
[348801731,1736789438051,-500.0,0.00020228,2]
[348801733,1736789438060,-500.0,0.00020228,2]
[348801735,1736789438070,-607.01412124,0.00020228,2]
[348801737,1736789438080,-500.0,0.00020228,3]
[348801739,1736789438090,-500.0,0.00020228,3]
[348801741,1736789438100,-878.97,0.00020228,3]
[348801743,1736789438109,-500.0,0.00020228,3]
[348801745,1736789438119,-500.0,0.00020228,3]
[348801747,1736789438129,-500.0,0.00020228,3]
[348801749,1736789438139,-500.0,0.00020228,3]
[348801752,1736789438150,-500.0,0.00020228,3]
[348801754,1736789438162,-500.0,0.00020228,3]
[348801756,1736789438171,-500.0,0.00020229,3]
[348801758,1736789438180,-500.0,0.00020229,3]
[348801761,1736789438189,-500.0,0.00020229,3]
[348801762,1736789438200,-500.0,0.00020229,3]
[348801765,1736789438215,-500.0,0.00020229,3]
[348801767,1736789438224,-500.0,0.00020229,3]
[348801769,1736789438233,-500.0,0.00020229,3]
[348801771,1736789438244,-500.0,0.00020229,3]
[348801772,1736789438252,-500.0,0.00020229,3]
[348801774,1736789438261,-500.0,0.00020229,3]
[348801777,1736789438271,-500.0,0.00020229,3]
[348801779,1736789438280,-500.0,0.00020229,3]
[348801781,1736789438290,-500.0,0.00020229,3]
[348801783,1736789438301,-500.0,0.00020229,3]
[348801785,1736789438310,-500.0,0.00020229,3]
[348801787,1736789438320,-500.0,0.00020229,3]
[348801789,1736789438330,-500.0,0.00020229,3]
[348801791,1736789438339,-500.0,0.00020229,3]
[348801793,1736789438349,-500.0,0.00020229,3]
[348801795,1736789438358,-500.0,0.00020229,3]
[348801797,1736789438367,-500.0,0.00020229,3]
[348801799,1736789438377,-500.0,0.00020229,3]
[348801801,1736789438387,-500.0,0.00020229,3]
[348801803,1736789438396,-500.0,0.00020229,3]
[348801805,1736789438405,-500.0,0.00020229,3]
[348801807,1736789438415,-500.0,0.00020229,3]
[348801809,1736789438424,-586.75279691,0.00020229,3]
[348801811,1736789438434,-554.46968388,0.00020229,3]
[348801813,1736789438443,-500.0,0.00020229,3]
[348801815,1736789438452,-500.0,0.00020229,3]
[348801817,1736789438462,-500.0,0.00020229,3]
[348801819,1736789438471,-617.28,0.00020229,3]
[348801821,1736789438481,-501.0964944,0.00020229,3]
[348801823,1736789438490,-500.0,0.00020229,3]
[348801825,1736789438500,-500.0,0.00020229,3]
[348801827,1736789438509,-500.0,0.00020229,3]
[348801829,1736789438518,-500.0,0.00020229,3]
[348801831,1736789438528,-500.0,0.00020229,3]
[348801833,1736789438538,-500.0,0.00020229,3]
[348801835,1736789438547,-500.0,0.00020229,3]
[348801837,1736789438556,-500.0,0.00020229,3]
[348801839,1736789438566,-500.0,0.00020229,3]
[348801841,1736789438575,-559.66,0.00020229,3]
[348801843,1736789438585,-500.0,0.00020229,3]
[348801845,1736789438594,-500.0,0.00020229,3]
[348801847,1736789438603,-500.0,0.00020229,3]
[348801849,1736789438612,-500.0,0.00020229,3]
[348801851,1736789438622,-500.0,0.00020229,3]
[348801853,1736789438631,-500.0,0.00020229,3]
[348801855,1736789438641,-151.72604169,0.00020229,3]
[348801857,1736789438650,-500.0,0.00020229,3]
[348801859,1736789438660,-500.0,0.00020229,3]
[348801862,1736789438670,-500.0,0.00020229,3]
[348801864,1736789438680,-500.3718976,0.00020229,3]
[348801866,1736789438690,-500.0,0.00020229,3]
[348801868,1736789438699,-500.0,0.00020229,3]
[348801870,1736789438708,-500.8030166,0.00020229,3]
[348801872,1736789438719,-339.65064301,0.00020229,3]
[348801874,1736789438728,-500.0,0.00020229,3]
[348801876,1736789438737,-500.0,0.00020229,3]
[348801878,1736789438747,-500.0,0.00020229,3]
[348801880,1736789438756,-500.0,0.00020229,3]
[348801882,1736789438766,-879.84,0.00020229,3]
[348801884,1736789438777,-500.0,0.00020229,3]
[348801886,1736789438786,-500.0,0.00020229,3]
[348801888,1736789438796,-500.0,0.00020229,3]
[348801890,1736789438805,-256.09102801,0.00020229,3]
[348801892,1736789438814,-500.0,0.00020229,3]
[348801894,1736789438824,-500.0,0.00020229,3]
[348801896,1736789438834,-500.0,0.00020229,3]
[348801898,1736789438844,-500.0,0.00020229,3]
[348801900,1736789438853,-500.0,0.00020229,3]
[348801902,1736789438863,-500.0,0.00020229,3]
[348801904,1736789438871,-500.0,0.00020229,3]
[348801906,1736789438881,-500.0,0.00020229,3]
[348801908,1736789438890,-500.0,0.00020229,3]
[348801910,1736789438900,-500.0,0.00020229,3]
[348801912,1736789438917,-503.81677707,0.00020229,3]
[348801915,1736789438927,-500.0,0.00020229,3]
[348801916,1736789438937,-500.0,0.00020229,3]
[348801919,1736789438946,-500.0,0.00020229,3]
[348801921,1736789438957,-637.2,0.00020229,3]
[348801923,1736789438966,-13394.9,0.00020229,2]
[348801925,1736789438976,-500.0,0.00020229,3]
[348801927,1736789438985,-500.0,0.00020229,3]
[348801929,1736789438995,-500.0,0.00020229,3]
[348801931,1736789439005,-569.86,0.00020229,3]
[348801933,1736789439015,-500.0,0.00020229,3]
[348801935,1736789439025,-501.04103447,0.00020229,3]
[348801937,1736789439035,-500.0,0.00020229,3]
[348801939,1736789439043,-500.0,0.00020229,3]
[348801941,1736789439054,-1568.59,0.00020229,3]
[348801943,1736789439064,-500.0,0.00020229,3]
[348801945,1736789439073,-500.0,0.00020229,3]
[348801947,1736789439082,-500.0,0.00020229,3]
[348801949,1736789439091,-500.0,0.00020229,3]
[348801951,1736789439101,-500.0,0.00020229,3]
[348801953,1736789439110,-500.0,0.00020229,3]
[348801955,1736789439120,-500.0,0.00020229,3]
[348801957,1736789439131,-500.0,0.00020229,3]
[348801959,1736789439141,-500.0,0.00020229,3]
[348801961,1736789439154,-500.0,0.00020229,3]
[348801963,1736789439170,-500.0,0.00020229,3]
[348801965,1736789439179,-579.72412741,0.00020229,3]
[348801966,1736789439189,-500.0,0.00020229,3]
[348801969,1736789439200,-500.0,0.00020229,3]
[348801970,1736789439211,-500.0,0.00020229,3]
[348801972,1736789439220,-500.0,0.00020229,3]
[348801974,1736789439230,-500.0,0.00020229,3]
[348801976,1736789439240,-500.0,0.00020229,3]
[348801979,1736789439250,-500.0,0.00020229,3]
[348801980,1736789439260,-500.0,0.00020229,3]
[348801982,1736789439269,-500.0,0.00020229,3]
[348801984,1736789439279,-500.0,0.00020229,3]
[348801986,1736789439288,-500.0,0.00020229,3]
[348801988,1736789439298,-501.47041177,0.00020229,3]
[348801990,1736789439308,-500.0,0.00020229,3]
[348801992,1736789439318,-500.0,0.00020229,3]
[348801994,1736789439328,-500.0,0.00020229,3]
[348801997,1736789439338,-500.0,0.00020229,3]
[348802001,1736789439348,-500.8008728,0.00020229,3]
[348802003,1736789439358,-500.0,0.00020229,3]
[348802005,1736789439368,-500.0,0.00020229,3]
[348802007,1736789439377,-500.0,0.00020229,3]
[348802009,1736789439386,-500.0,0.00020229,3]
[348802010,1736789439396,-500.0,0.00020229,3]
[348802012,1736789439405,-500.0,0.00020229,3]
[348802014,1736789439415,-500.0,0.00020229,3]
[348802017,1736789439425,-457.2467634,0.00020229,3]
[348802019,1736789439434,-500.0,0.00020229,3]
[348802021,1736789439443,-500.0,0.00020229,3]
[348802022,1736789439454,-500.0,0.00020229,3]
[348802024,1736789439463,-500.0,0.00020229,3]
[348802026,1736789439474,-500.0,0.00020229,3]
[348802028,1736789439483,-500.0,0.00020229,3]
[348802030,1736789439493,-500.0,0.00020229,3]
[348802034,1736789439504,-500.0,0.00020229,3]
[348802040,1736789439514,-212.40078819,0.00020229,3]
[348802042,1736789439524,-500.0,0.00020229,3]
[348802046,1736789439534,-500.0,0.00020229,3]
[348802047,1736789439545,-500.0,0.00020229,3]
[348802050,1736789439554,-500.0,0.00020229,3]
[348802052,1736789439564,-910.52,0.00020229,3]
[348802053,1736789439573,-500.0,0.00020229,3]
[348802055,1736789439583,-500.0,0.00020229,3]
[348802057,1736789439592,-500.0,0.00020229,3]
[348802060,1736789439602,-500.0,0.00020229,3]
[348802062,1736789439611,-499.0,0.00020229,2]
[348802064,1736789439620,-500.0,0.00020229,3]
[348802066,1736789439629,-500.0,0.00020229,3]
[348802068,1736789439639,-500.0,0.00020229,3]
[348802070,1736789439649,-500.41498628,0.00020229,3]
[348802072,1736789439659,-500.0,0.00020229,3]
[348802074,1736789439668,-500.0,0.00020229,3]
[348802076,1736789439677,-500.0,0.00020229,3]
[348802078,1736789439686,-500.0,0.00020229,3]
[348802080,1736789439696,-500.0,0.00020229,3]
[348802082,1736789439705,-500.0,0.00020229,3]
[348802084,1736789439715,-815.7,0.00020229,3]
[348802086,1736789439725,-500.52844914,0.00020229,3]
[348802088,1736789439734,-500.0,0.00020229,3]
[348802090,1736789439743,-404.13472271,0.00020229,3]
[348802092,1736789439753,-500.0,0.00020229,3]
[348802094,1736789439762,-500.0,0.00020229,3]
[348802096,1736789439771,-500.0,0.00020229,3]
[348802098,1736789439781,-500.0,0.00020229,3]
[348802100,1736789439791,-500.0,0.00020229,3]
[348802102,1736789439800,-393.48677689,0.00020229,3]
[348802104,1736789439814,-500.0,0.00020229,3]
[348802106,1736789439823,-500.0,0.00020229,3]
[348802108,1736789439833,-500.0,0.00020229,3]
[348802110,1736789439843,-500.0,0.00020229,3]
[348802113,1736789439855,-500.0,0.00020229,3]
[348802115,1736789439864,-500.0,0.00020229,3]
[348802117,1736789439873,-500.0,0.00020229,3]
[348802119,1736789439883,-500.0,0.00020229,3]
[348802121,1736789439892,-500.0,0.00020229,3]
[348802123,1736789439902,-500.0,0.00020229,3]
[348802125,1736789439912,-500.0,0.00020229,3]
[348802127,1736789439921,-500.0,0.00020229,3]
[348802128,1736789439931,-1088.7,0.00020229,3]
[348802130,1736789439940,-1088.7,0.00020229,3]
[348802133,1736789439950,-500.0,0.00020229,3]
[348802135,1736789439959,-500.0,0.00020229,2]
[348802137,1736789439969,-177.31581798,0.00020229,2]
[348802138,1736789439979,-204.91863066,0.00020229,2]
[348802141,1736789439989,-533.73504429,0.00020229,2]
[348802143,1736789439998,-500.0,0.0002023,3]
[348802145,1736789440008,-500.0,0.0002023,3]
[348802147,1736789440017,-500.0,0.0002023,3]
[348802149,1736789440026,-500.0,0.0002023,3]
[348802151,1736789440036,-244.0275391,0.0002023,3]
[348802153,1736789440045,-500.0,0.0002023,3]
[348802155,1736789440055,-500.0,0.0002023,3]
[348802156,1736789440064,-500.0,0.0002023,3]
[348802158,1736789440075,-500.0,0.0002023,3]
[348802160,1736789440084,-500.0,0.0002023,3]
[348802161,1736789440093,-500.0,0.0002023,3]
[348802162,1736789440102,-500.0,0.0002023,3]
[348802163,1736789440111,-500.0,0.0002023,3]
[348802164,1736789440120,-500.0,0.0002023,3]
[348802165,1736789440130,-500.0,0.0002023,3]
[348802166,1736789440139,-500.0,0.0002023,3]
[348802167,1736789440150,-500.0,0.0002023,3]
[348802168,1736789440160,-500.0,0.0002023,3]
[348802169,1736789440169,-500.0,0.0002023,3]
[348802170,1736789440178,-500.0,0.0002023,3]
[348802171,1736789440187,-500.0,0.0002023,3]
[348802172,1736789440198,-500.0,0.0002023,3]
[348802173,1736789440207,-500.0,0.0002023,3]
[348802174,1736789440217,-500.63893206,0.0002023,3]
[348802175,1736789440232,-500.0,0.0002023,3]
[348802176,1736789440242,-500.0,0.0002023,3]
[348802177,1736789440251,-500.0,0.0002023,3]
[348802178,1736789440260,-500.0,0.0002023,3]
[348802179,1736789440271,-501.02130177,0.0002023,3]
[348802180,1736789440281,-594.43822785,0.0002023,3]
[348802182,1736789440295,-500.0,0.0002023,3]
[348802184,1736789440305,-500.0,0.0002023,3]
[348802186,1736789440315,-500.0,0.0002023,3]
[348802188,1736789440324,-503.77095047,0.0002023,3]
[348802190,1736789440333,-500.0,0.0002023,3]
[348802192,1736789440343,-500.0,0.0002023,3]
[348802194,1736789440352,-500.0,0.0002023,3]
[348802196,1736789440362,-501.70442386,0.0002023,3]
[348802198,1736789440372,-500.0,0.0002023,3]
[348802201,1736789440381,-500.0,0.0002023,3]
[348802202,1736789440391,-500.0,0.0002023,3]
[348802205,1736789440403,-500.0,0.0002023,3]
[348802207,1736789440412,-504.36130214,0.0002023,3]
[348802208,1736789440425,-500.0,0.0002023,3]
[348802210,1736789440434,-500.0,0.0002023,3]
[348802213,1736789440443,-200.0,0.0002023,3]
[348802215,1736789440452,-500.0,0.0002023,3]
[348802217,1736789440462,-624.63454715,0.0002023,3]
[348802219,1736789440472,-500.0,0.0002023,3]
[348802221,1736789440481,-500.0,0.0002023,3]
[348802223,1736789440491,-500.0,0.0002023,3]
[348802224,1736789440500,-500.0,0.0002023,3]
[348802226,1736789440509,-500.0,0.0002023,3]
[348802228,1736789440519,-508.46138477,0.0002023,3]
[348802231,1736789440529,-500.0,0.0002023,3]
[348802232,1736789440538,-500.0,0.0002023,3]
[348802234,1736789440548,-500.0,0.0002023,3]
[348802236,1736789440557,-500.0,0.0002023,3]
[348802239,1736789440568,-500.0,0.0002023,3]
[348802241,1736789440578,-500.0,0.0002023,3]
[348802243,1736789440587,-500.0,0.0002023,3]
[348802245,1736789440597,-500.0,0.0002023,3]
[348802247,1736789440606,-207.276,0.0002023,2]
[348802249,1736789440615,-500.0,0.0002023,3]
[348802251,1736789440624,-500.0,0.0002023,3]
[348802253,1736789440634,-500.0,0.0002023,3]
[348802255,1736789440643,-266.50337485,0.0002023,3]
[348802257,1736789440652,-500.0,0.0002023,3]
[348802259,1736789440661,-633.39762204,0.0002023,3]
[348802261,1736789440671,-500.0,0.0002023,3]
[348802263,1736789440680,-500.0,0.0002023,3]
[348802265,1736789440690,-500.0,0.0002023,3]
[348802267,1736789440699,-500.0,0.0002023,3]
[348802269,1736789440709,-500.0,0.0002023,3]
[348802271,1736789440718,-500.0,0.0002023,3]
[348802273,1736789440728,-500.0,0.0002023,3]
[348802275,1736789440737,-500.0,0.0002023,3]
[348802277,1736789440747,-500.0,0.0002023,3]
[348802279,1736789440756,-500.0,0.0002023,3]
[348802281,1736789440766,-500.0,0.0002023,3]
[348802283,1736789440775,-500.0,0.0002023,3]
[348802285,1736789440785,-500.0,0.0002023,3]
[348802287,1736789440795,-500.71264049,0.0002023,3]
[348802289,1736789440805,-500.0,0.0002023,3]
[348802291,1736789440814,-500.87182841,0.0002023,3]
[348802293,1736789440823,-500.0,0.0002023,3]
[348802295,1736789440832,-500.0,0.0002023,3]
[348802297,1736789440841,-503.79694919,0.0002023,3]
[348802299,1736789440850,-500.78594744,0.0002023,3]
[348802301,1736789440859,-500.0,0.0002023,3]
[348802303,1736789440868,-562.69,0.0002023,3]
[348802305,1736789440877,-500.58965779,0.0002023,3]
[348802307,1736789440886,-500.86422102,0.0002023,3]
[348802308,1736789440895,-505.01965157,0.0002023,3]
[348802310,1736789440904,-500.0,0.0002023,3]
[348802312,1736789440915,-500.0,0.0002023,3]
[348802315,1736789440926,-376.13623561,0.0002023,3]
[348802316,1736789440936,-505.04158088,0.0002023,3]
[348802318,1736789440946,-500.0,0.0002023,3]
[348802321,1736789440956,-500.0,0.0002023,3]
[348802322,1736789440965,-500.0,0.0002023,3]
[348802325,1736789440976,-500.0,0.0002023,3]
[348802327,1736789440985,-502.34664934,0.0002023,3]
[348802329,1736789440994,-500.0,0.0002023,3]
[348802330,1736789441003,-500.44275971,0.0002023,3]
[348802333,1736789441012,-500.58596793,0.0002023,3]
[348802335,1736789441022,-500.0,0.0002023,3]
[348802336,1736789441032,-501.03921731,0.0002023,3]
[348802339,1736789441041,-501.02718295,0.0002023,3]
[348802340,1736789441050,-500.0,0.0002023,3]
[348802342,1736789441060,-500.0,0.0002023,3]
[348802358,1736789441182,-500.0,0.0002023,3]
[348802360,1736789441208,-500.0,0.0002023,3]
[348802362,1736789441217,-498.41684883,0.0002023,3]
[348802364,1736789441227,-500.0,0.0002023,3]
[348802366,1736789441237,-500.0,0.0002023,3]
[348802368,1736789441247,-500.0,0.0002023,3]
[348802371,1736789441257,-500.0,0.0002023,3]
[348802373,1736789441267,-500.0,0.0002023,3]
[348802375,1736789441276,-500.0,0.0002023,3]
[348802376,1736789441286,-500.0,0.0002023,3]
[348802379,1736789441296,-500.0,0.0002023,3]
[348802381,1736789441305,-500.0,0.0002023,3]
[348802383,1736789441315,-500.0,0.0002023,3]
[348802384,1736789441325,-500.0,0.0002023,3]
[348802387,1736789441336,-500.0,0.0002023,3]
[348802389,1736789441345,-500.36740754,0.0002023,3]
[348802391,1736789441355,-500.0,0.0002023,3]
[348802393,1736789441365,-501.77287503,0.0002023,3]
[348802394,1736789441374,-500.0,0.0002023,3]
[348802397,1736789441383,-500.0,0.0002023,3]
[348802399,1736789441393,-500.36351968,0.0002023,3]
[348802400,1736789441403,-500.75998027,0.0002023,3]
[348802402,1736789441413,-646.47518478,0.0002023,3]
[348802404,1736789441422,-500.0,0.0002023,3]
[348802406,1736789441431,-500.0,0.0002023,3]
[348802408,1736789441441,-500.8781245,0.0002023,3]
[348802410,1736789441451,-500.0,0.0002023,3]
[348802413,1736789441462,-500.0,0.0002023,3]
[348802415,1736789441472,-500.69934447,0.0002023,3]
[348802417,1736789441482,-501.44537215,0.0002023,3]
[348802418,1736789441492,-500.0,0.0002023,3]
[348802421,1736789441503,-500.0,0.0002023,3]
[348802423,1736789441513,-501.27862958,0.0002023,3]
[348802425,1736789441523,-500.35296042,0.0002023,3]
[348802427,1736789441533,-500.19212954,0.0002023,3]
[348802429,1736789441542,-501.17488566,0.0002023,3]
[348802431,1736789441552,-500.0,0.0002023,3]
[348802433,1736789441561,-500.0,0.0002023,3]
[348802435,1736789441571,-500.0,0.0002023,3]
[348802436,1736789441581,-500.0,0.0002023,3]
[348802439,1736789441591,-500.0,0.0002023,3]
[348802441,1736789441601,-500.53757376,0.0002023,3]
[348802443,1736789441611,-500.0,0.0002023,3]
[348802444,1736789441620,-500.0,0.0002023,3]
[348802447,1736789441630,-500.0,0.0002023,3]
[348802449,1736789441640,-500.0,0.0002023,3]
[348802450,1736789441649,-500.0,0.0002023,3]
[348802452,1736789441658,-500.0,0.0002023,3]
[348802454,1736789441668,-500.0,0.0002023,3]
[348802456,1736789441677,-501.21233733,0.0002023,3]
[348802458,1736789441687,-500.0,0.0002023,3]
[348802460,1736789441696,-500.0,0.0002023,3]
[348802463,1736789441706,-500.0,0.0002023,3]
[348802464,1736789441715,-500.53933761,0.0002023,3]
[348802467,1736789441725,-500.0,0.0002023,3]
[348802469,1736789441734,-500.0,0.0002023,3]
[348802471,1736789441743,-500.0,0.0002023,3]
[348802473,1736789441753,-500.0,0.0002023,3]
[348802474,1736789441763,-500.0,0.0002023,3]
[348802477,1736789441773,-500.0,0.0002023,3]
[348802479,1736789441782,-500.0,0.0002023,3]
[348802481,1736789441792,-500.0,0.0002023,3]
[348802483,1736789441801,-500.0,0.0002023,3]
[348802485,1736789441811,-500.0,0.0002023,3]
[348802487,1736789441821,-500.0,0.0002023,3]
[348802488,1736789441831,-500.0,0.0002023,3]
[348802490,1736789441841,-500.0,0.0002023,3]
[348802493,1736789441850,-500.0,0.0002023,3]
[348802495,1736789441860,-500.0,0.0002023,3]
[348802497,1736789441869,-500.0,0.0002023,3]
[348802499,1736789441879,-500.0,0.0002023,3]
[348802501,1736789441888,-500.18801941,0.0002023,3]
[348802503,1736789441897,-503.91868773,0.0002023,3]
[348802504,1736789441907,-500.0,0.0002023,3]
[348802507,1736789441918,-500.0,0.0002023,3]
[348802508,1736789441927,-500.0,0.0002023,3]
[348802511,1736789441936,-500.0,0.0002023,3]
[348802512,1736789441946,-500.0,0.0002023,3]
[348802514,1736789441955,-500.0,0.0002023,3]
[348802516,1736789441964,-500.0,0.0002023,3]
[348802518,1736789441973,-500.0,0.0002023,3]
[348802521,1736789441983,-500.0,0.0002023,3]
[348802523,1736789441992,-500.69599921,0.0002023,3]
[348802525,1736789442002,-500.0,0.0002023,3]
[348802527,1736789442011,-500.0,0.0002023,3]
[348802529,1736789442021,-500.0,0.0002023,3]
[348802531,1736789442030,-500.0,0.0002023,3]
[348802533,1736789442039,-237.75560693,0.0002023,3]
[348802535,1736789442049,-500.0,0.0002023,3]
[348802536,1736789442059,-500.0,0.0002023,3]
[348802537,1736789442068,-500.0,0.0002023,3]
[348802538,1736789442077,-500.0,0.0002023,3]
[348802539,1736789442086,-500.0,0.0002023,3]
[348802540,1736789442095,-269.86613478,0.0002023,3]
[348802541,1736789442104,-500.0,0.0002023,3]
[348802542,1736789442114,-500.0,0.0002023,3]
[348802543,1736789442123,-500.70274033,0.0002023,3]
[348802544,1736789442133,-500.0,0.0002023,3]
[348802545,1736789442142,-500.0,0.0002023,3]
[348802546,1736789442153,-500.0,0.0002023,3]
[348802547,1736789442162,-500.0,0.0002023,3]
[348802548,1736789442171,-500.32253551,0.0002023,3]
[348802549,1736789442180,-500.0,0.0002023,3]
[348802550,1736789442189,-246.38565291,0.0002023,3]
[348802551,1736789442198,-500.0,0.0002023,3]
[348802552,1736789442207,-551.58525316,0.0002023,3]
[348802553,1736789442215,-500.0,0.0002023,3]
[348802554,1736789442225,-500.0,0.0002023,3]
[348802555,1736789442235,-500.0,0.0002023,3]
[348802556,1736789442245,-500.0,0.0002023,3]
[348802557,1736789442254,-500.0,0.0002023,3]
[348802558,1736789442264,-500.0,0.0002023,3]